[Event "*** MasterClass Titled Tuesday Blitz"]
[Site "Chess.com"]
[Date "2017.12.05"]
[Round "7"]
[White "dawtonlms"]
[Black "wanyaland"]
[Result "1-0"]
[WhiteElo "2245"]
[BlackElo "2232"]
[TimeControl "180+2"]
[EndTime "15:46:00 PST"]
[Termination "dawtonlms won by resignation"]

1. e4 {[%clk 0:03:01.9]} 1... c5 {[%clk 0:02:58]} 2. Nf3 {[%clk 0:03:02.6]} 2...
d6 {[%clk 0:02:59.4]} 3. Bb5+ {[%clk 0:03:02.8]} 3... Bd7 {[%clk 0:02:59.3]} 4.
Bxd7+ {[%clk 0:03:03.5]} 4... Qxd7 {[%clk 0:03:01.2]} 5. c4 {[%clk 0:03:03]}
5... g6 {[%clk 0:03:01.1]} 6. d4 {[%clk 0:03:02.2]} 6... cxd4 {[%clk 0:03:03]}
7. Nxd4 {[%clk 0:03:04]} 7... Bg7 {[%clk 0:03:03.7]} 8. Nc3 {[%clk 0:03:05.4]}
8... Nc6 {[%clk 0:03:04.6]} 9. Nde2 {[%clk 0:03:06.3]} 9... Nf6 {[%clk
0:03:05.7]} 10. O-O {[%clk 0:03:07]} 10... Rc8 {[%clk 0:03:07.1]} 11. f3 {[%clk
0:03:02.9]} 11... O-O {[%clk 0:03:06.6]} 12. Be3 {[%clk 0:03:03.1]} 12... b6
{[%clk 0:02:35.9]} 13. Qd2 {[%clk 0:03:00.3]} 13... Rfe8 {[%clk 0:02:36.9]} 14.
Rfd1 {[%clk 0:02:53.3]} 14... Qb7 {[%clk 0:02:36.7]} 15. Rab1 {[%clk 0:02:42.8]}
15... Nd7 {[%clk 0:02:34.3]} 16. b3 {[%clk 0:02:42.4]} 16... Nc5 {[%clk
0:02:32.2]} 17. h4 {[%clk 0:02:40.1]} 17... a5 {[%clk 0:02:31.1]} 18. h5 {[%clk
0:02:36.2]} 18... Nb4 {[%clk 0:02:30.5]} 19. hxg6 {[%clk 0:02:33.5]} 19... hxg6
{[%clk 0:02:30.1]} 20. Nf4 {[%clk 0:02:26.6]} 20... Be5 {[%clk 0:02:21.9]} 21.
Bd4 {[%clk 0:02:10.4]} 21... Bxf4 {[%clk 0:02:17.6]} 22. Qxf4 {[%clk 0:02:10.1]}
22... e5 {[%clk 0:02:18]} 23. Qh6 {[%clk 0:01:56.7]} 23... exd4 {[%clk
0:02:16.8]} 24. Nb5 {[%clk 0:01:57.8]} 24... d3 {[%clk 0:02:08.3]} 25. Kf2
{[%clk 0:01:57.5]} 25... Nxa2 {[%clk 0:02:07.1]} 26. Rh1 {[%clk 0:01:57]} 26...
f6 {[%clk 0:02:01.3]} 27. Qh8+ {[%clk 0:01:23.3]} 27... Kf7 {[%clk 0:02:01.4]}
28. Qh7+ {[%clk 0:01:23.6]} 28... Ke6 {[%clk 0:01:59.1]} 29. Qxg6 {[%clk
0:01:24.2]} 29... Rh8 {[%clk 0:01:33.8]} 30. Qg4+ {[%clk 0:01:19.7]} 30... Ke7
{[%clk 0:01:28.9]} 31. Rxh8 {[%clk 0:01:04.8]} 31... Rxh8 {[%clk 0:01:28]} 32.
Qg7+ {[%clk 0:01:05.5]} 32... Ke6 {[%clk 0:01:28.9]} 33. Qxh8 {[%clk 0:01:06.6]}
33... Qf7 {[%clk 0:00:59.4]} 34. Rh1 {[%clk 0:00:58.2]} 34... d2 {[%clk
0:00:53.9]} 35. Ke2 {[%clk 0:00:51.6]} 35... Nxb3 {[%clk 0:00:45.6]} 36. Rh7
{[%clk 0:00:44]} 36... Qg6 {[%clk 0:00:33.2]} 37. Qc8+ {[%clk 0:00:27.4]} 37...
Ke5 {[%clk 0:00:33.5]} 38. Re7+ {[%clk 0:00:03.2]} 38... Kf4 {[%clk 0:00:34]}
39. Qg4+ {[%clk 0:00:04.3]} 39... Qxg4 {[%clk 0:00:33.9]} 40. fxg4 {[%clk
0:00:06.2]} 40... Nac1+ {[%clk 0:00:26.7]} 41. Kd1 {[%clk 0:00:06.4]} 41... Nd3
{[%clk 0:00:27.3]} 42. Kc2 {[%clk 0:00:04.8]} 42... Ndc5 {[%clk 0:00:20.7]} 43.
Rg7 {[%clk 0:00:02.9]} 43... a4 {[%clk 0:00:19.2]} 44. g5 {[%clk 0:00:03.8]}
44... fxg5 {[%clk 0:00:19]} 45. g3+ {[%clk 0:00:02.3]} 45... Kxg3 {[%clk
0:00:18.6]} 46. Rxg5+ {[%clk 0:00:03.4]} 46... Kf4 {[%clk 0:00:20.2]} 47. Rg8
{[%clk 0:00:04.9]} 47... Kxe4 {[%clk 0:00:19.4]} 48. Rg4+ {[%clk 0:00:05.9]}
48... Ke5 {[%clk 0:00:20.2]} 49. Nc3 {[%clk 0:00:06]} 49... a3 {[%clk
0:00:20.2]} 50. Rg5+ {[%clk 0:00:07]} 50... Kd4 {[%clk 0:00:20.9]} 51. Rg4+
{[%clk 0:00:07.5]} 51... Ke5 {[%clk 0:00:22]} 52. Rh4 {[%clk 0:00:08.1]} 52...
a2 {[%clk 0:00:21.5]} 53. Nxa2 {[%clk 0:00:08.7]} 53... Ne4 {[%clk 0:00:22.5]}
54. Rh5+ {[%clk 0:00:08.2]} 54... Kd4 {[%clk 0:00:22.8]} 55. Rh4 {[%clk
0:00:08.9]} 55... Na1+ {[%clk 0:00:23.4]} 56. Kd1 {[%clk 0:00:09.4]} 56... Kd3
{[%clk 0:00:23]} 57. Nb4+ {[%clk 0:00:10.5]} 57... Kxc4 {[%clk 0:00:23.8]} 58.
Rxe4+ {[%clk 0:00:11.1]} 58... Kb3 {[%clk 0:00:24.1]} 59. Kxd2 {[%clk
0:00:09.7]} 59... b5 {[%clk 0:00:25]} 60. Nd5 {[%clk 0:00:10.7]} 1-0

[Event "*** MasterClass Titled Tuesday Blitz"]
[Site "Chess.com"]
[Date "2017.12.05"]
[Round "7"]
[White "Jumbo"]
[Black "Rsnr"]
[Result "0-1"]
[WhiteElo "2476"]
[BlackElo "2635"]
[TimeControl "180+2"]
[EndTime "15:46:17 PST"]
[Termination "Rsnr won on time"]

1. d4 {[%clk 0:03:00.8]} 1... d5 {[%clk 0:03:00.6]} 2. c4 {[%clk 0:03:01.3]}
2... c6 {[%clk 0:03:01.8]} 3. Nc3 {[%clk 0:02:59.1]} 3... Nf6 {[%clk 0:03:03.2]}
4. e3 {[%clk 0:03:00.2]} 4... Bf5 {[%clk 0:03:03]} 5. cxd5 {[%clk 0:02:57.6]}
5... cxd5 {[%clk 0:03:04.9]} 6. Qb3 {[%clk 0:02:58.8]} 6... Nc6 {[%clk
0:03:05.5]} 7. Qxb7 {[%clk 0:02:58.8]} 7... Bd7 {[%clk 0:03:07]} 8. Qb3 {[%clk
0:03:00.2]} 8... Rb8 {[%clk 0:03:08]} 9. Qd1 {[%clk 0:03:01.6]} 9... e5 {[%clk
0:03:09.7]} 10. dxe5 {[%clk 0:02:58.1]} 10... Nxe5 {[%clk 0:03:11.6]} 11. Nf3
{[%clk 0:02:49.6]} 11... Bd6 {[%clk 0:03:12.9]} 12. Be2 {[%clk 0:02:49.7]} 12...
O-O {[%clk 0:03:13.5]} 13. O-O {[%clk 0:02:50.2]} 13... Qe7 {[%clk 0:03:13.4]}
14. g3 {[%clk 0:02:37]} 14... Rfc8 {[%clk 0:03:12.2]} 15. Nd4 {[%clk 0:02:33.4]}
15... Bb4 {[%clk 0:02:56.9]} 16. Bd2 {[%clk 0:02:33]} 16... Nc4 {[%clk 0:02:52]}
17. Bxc4 {[%clk 0:02:24.3]} 17... dxc4 {[%clk 0:02:53.9]} 18. Re1 {[%clk
0:02:20.9]} 18... Bc5 {[%clk 0:02:46.5]} 19. Rb1 {[%clk 0:02:21.2]} 19... Ng4
{[%clk 0:02:43.7]} 20. Nd5 {[%clk 0:02:12]} 20... Qd6 {[%clk 0:02:40.1]} 21. Nf4
{[%clk 0:02:11.3]} 21... g5 {[%clk 0:02:33]} 22. Ng2 {[%clk 0:02:00]} 22... Ne5
{[%clk 0:02:34.1]} 23. Bc3 {[%clk 0:01:59.7]} 23... Bg4 {[%clk 0:02:32.7]} 24.
f3 {[%clk 0:02:00.7]} 24... Nxf3+ {[%clk 0:02:31.3]} 25. Nxf3 {[%clk 0:02:01.6]}
25... Qxd1 {[%clk 0:02:33.2]} 26. Rbxd1 {[%clk 0:02:02.6]} 26... Bxf3 {[%clk
0:02:35.1]} 27. Rd7 {[%clk 0:02:01.6]} 27... Bc6 {[%clk 0:02:22.7]} 28. Rd2
{[%clk 0:02:00.2]} 28... h6 {[%clk 0:02:23.1]} 29. Kf2 {[%clk 0:01:44.6]} 29...
f5 {[%clk 0:02:22.3]} 30. Red1 {[%clk 0:01:39.9]} 30... Re8 {[%clk 0:02:21]} 31.
Bd4 {[%clk 0:01:40.9]} 31... Bb4 {[%clk 0:02:19.7]} 32. Re2 {[%clk 0:01:37.8]}
32... Be4 {[%clk 0:02:17.8]} 33. Ne1 {[%clk 0:01:36.6]} 33... Red8 {[%clk
0:02:18.5]} 34. a3 {[%clk 0:01:33.5]} 34... Bc5 {[%clk 0:01:59.4]} 35. Red2
{[%clk 0:01:31.9]} 35... Bxd4 {[%clk 0:02:00.1]} 36. exd4 {[%clk 0:01:31.9]}
36... Kf7 {[%clk 0:02:01.3]} 37. Rc1 {[%clk 0:01:29.4]} 37... Rdc8 {[%clk
0:01:51.5]} 38. d5 {[%clk 0:01:27]} 38... Ke7 {[%clk 0:01:37.4]} 39. Ng2 {[%clk
0:01:20.8]} 39... Rb3 {[%clk 0:01:14.4]} 40. Ne3 {[%clk 0:01:05.3]} 40... c3
{[%clk 0:01:15.7]} 41. bxc3 {[%clk 0:01:02.4]} 41... Rcxc3 {[%clk 0:01:17.6]}
42. d6+ {[%clk 0:00:53.3]} 42... Kd7 {[%clk 0:01:18.8]} 43. Rxc3 {[%clk
0:00:53.8]} 43... Rxc3 {[%clk 0:01:20.7]} 44. Nd5 {[%clk 0:00:54]} 44... Rf3+
{[%clk 0:01:07.6]} 45. Ke2 {[%clk 0:00:54.3]} 45... Kxd6 {[%clk 0:01:08.4]} 46.
Ne3+ {[%clk 0:00:43.4]} 46... Ke6 {[%clk 0:00:59.2]} 47. Rd4 {[%clk 0:00:44.2]}
47... h5 {[%clk 0:00:43.4]} 48. Ra4 {[%clk 0:00:37.3]} 48... g4 {[%clk
0:00:44.6]} 49. Ra6+ {[%clk 0:00:29.3]} 49... Ke5 {[%clk 0:00:45.7]} 50. Ra5+
{[%clk 0:00:24.6]} 50... Kf6 {[%clk 0:00:47]} 51. Ra6+ {[%clk 0:00:24.9]} 51...
Kg5 {[%clk 0:00:48.4]} 52. Rxa7 {[%clk 0:00:24.1]} 52... h4 {[%clk 0:00:44]} 53.
gxh4+ {[%clk 0:00:08.4]} 53... Kf4 {[%clk 0:00:37.7]} 54. Ng2+ {[%clk 0:00:08]}
54... Ke5 {[%clk 0:00:39.3]} 55. Ra5+ {[%clk 0:00:09.2]} 55... Kd4 {[%clk
0:00:39.8]} 56. Ra4+ {[%clk 0:00:09.9]} 56... Ke5 {[%clk 0:00:21.9]} 57. Ra5+
{[%clk 0:00:10.9]} 57... Kd4 {[%clk 0:00:18.9]} 58. Ra4+ {[%clk 0:00:11.9]}
58... Kc3 {[%clk 0:00:20.4]} 59. Rxe4 {[%clk 0:00:02.2]} 59... fxe4 {[%clk
0:00:20.7]} 60. Ne3 {[%clk 0:00:03.5]} 60... Rh3 {[%clk 0:00:14.7]} 61. Nxg4
{[%clk 0:00:03.5]} 61... Rxh4 {[%clk 0:00:16.2]} 62. Nf2 {[%clk 0:00:04.7]}
62... Kd4 {[%clk 0:00:16.5]} 63. h3 {[%clk 0:00:04.5]} 63... e3 {[%clk
0:00:17.9]} 0-1

[Event "*** MasterClass Titled Tuesday Blitz"]
[Site "Chess.com"]
[Date "2017.12.05"]
[Round "7"]
[White "ENEASZ"]
[Black "chessking2151"]
[Result "0-1"]
[WhiteElo "2403"]
[BlackElo "2355"]
[TimeControl "180+2"]
[EndTime "15:46:29 PST"]
[Termination "chessking2151 won by resignation"]

1. e4 {[%clk 0:03:01.9]} 1... e5 {[%clk 0:03:00.5]} 2. Nf3 {[%clk 0:03:02.4]}
2... Nc6 {[%clk 0:03:02.1]} 3. Bc4 {[%clk 0:03:03.5]} 3... a6 {[%clk 0:03:03.7]}
4. c3 {[%clk 0:03:03.6]} 4... Nf6 {[%clk 0:02:51.5]} 5. Qe2 {[%clk 0:02:50.6]}
5... b5 {[%clk 0:02:37.4]} 6. Bb3 {[%clk 0:02:50]} 6... Be7 {[%clk 0:02:37.8]}
7. d4 {[%clk 0:02:48.8]} 7... d6 {[%clk 0:02:38.9]} 8. O-O {[%clk 0:02:47.7]}
8... O-O {[%clk 0:02:39.7]} 9. dxe5 {[%clk 0:02:45.9]} 9... Nxe5 {[%clk
0:02:35.9]} 10. Nxe5 {[%clk 0:02:46.4]} 10... dxe5 {[%clk 0:02:37.8]} 11. Rd1
{[%clk 0:02:47.7]} 11... Qe8 {[%clk 0:02:38.9]} 12. Bg5 {[%clk 0:02:47.1]} 12...
h6 {[%clk 0:02:37.7]} 13. Bh4 {[%clk 0:02:44.8]} 13... Bb7 {[%clk 0:02:36.2]}
14. f3 {[%clk 0:02:42.9]} 14... Rd8 {[%clk 0:02:32.1]} 15. Nd2 {[%clk
0:02:43.3]} 15... c5 {[%clk 0:02:31.8]} 16. Nf1 {[%clk 0:02:38.6]} 16... c4
{[%clk 0:02:32.1]} 17. Bc2 {[%clk 0:02:39.6]} 17... Nh5 {[%clk 0:02:19.3]} 18.
Rxd8 {[%clk 0:02:29.8]} 18... Bxd8 {[%clk 0:02:14.7]} 19. Bxd8 {[%clk 0:02:23]}
19... Qxd8 {[%clk 0:02:15]} 20. Rd1 {[%clk 0:02:24.6]} 20... Nf4 {[%clk
0:02:14.6]} 21. Qe3 {[%clk 0:02:06.8]} 21... Qc7 {[%clk 0:02:13.9]} 22. g3
{[%clk 0:02:00.8]} 22... Ne6 {[%clk 0:02:13.5]} 23. Kf2 {[%clk 0:01:50.2]} 23...
Bc6 {[%clk 0:01:55.3]} 24. h4 {[%clk 0:01:45.4]} 24... a5 {[%clk 0:01:52.2]} 25.
Qd2 {[%clk 0:01:42.3]} 25... Rd8 {[%clk 0:01:49.6]} 26. Qe3 {[%clk 0:01:40.6]}
26... Rb8 {[%clk 0:01:46.1]} 27. Qd2 {[%clk 0:01:40.6]} 27... Rd8 {[%clk
0:01:43.4]} 28. Qe3 {[%clk 0:01:41.3]} 28... Ra8 {[%clk 0:01:14.8]} 29. Qd2
{[%clk 0:01:40.7]} 29... Rb8 {[%clk 0:01:02]} 30. Ne3 {[%clk 0:01:38.3]} 30...
Rd8 {[%clk 0:01:02.2]} 31. Qe2 {[%clk 0:01:36.3]} 31... Qb6 {[%clk 0:01:00.1]}
32. Rxd8+ {[%clk 0:01:36.2]} 32... Qxd8 {[%clk 0:01:02]} 33. Nf5 {[%clk
0:01:28.8]} 33... Kh7 {[%clk 0:00:54.6]} 34. Qd1 {[%clk 0:01:18.7]} 34... Qb6+
{[%clk 0:00:54.4]} 35. Kg2 {[%clk 0:01:16.5]} 35... g6 {[%clk 0:00:45.7]} 36.
Ne7 {[%clk 0:01:17.1]} 36... Qc7 {[%clk 0:00:37.8]} 37. Nd5 {[%clk 0:01:16]}
37... Qd8 {[%clk 0:00:38.8]} 38. h5 {[%clk 0:01:15.7]} 38... Kg7 {[%clk
0:00:37.8]} 39. hxg6 {[%clk 0:01:16.1]} 39... fxg6 {[%clk 0:00:39.7]} 40. Ne3
{[%clk 0:00:47.6]} 40... Qe7 {[%clk 0:00:32.7]} 41. Qd2 {[%clk 0:00:40.6]} 41...
h5 {[%clk 0:00:31.8]} 42. a4 {[%clk 0:00:40.1]} 42... h4 {[%clk 0:00:24.8]} 43.
axb5 {[%clk 0:00:39.5]} 43... Bxb5 {[%clk 0:00:19.5]} 44. Qd5 {[%clk 0:00:40.3]}
44... Nc7 {[%clk 0:00:18]} 45. Qb7 {[%clk 0:00:21.9]} 45... Kf8 {[%clk
0:00:09.9]} 46. Ng4 {[%clk 0:00:17.9]} 46... hxg3 {[%clk 0:00:11]} 47. Qc8+
{[%clk 0:00:15.2]} 47... Kg7 {[%clk 0:00:10.9]} 48. Qb7 {[%clk 0:00:16.2]} 48...
Kf8 {[%clk 0:00:11.3]} 49. Qc8+ {[%clk 0:00:17.1]} 49... Be8 {[%clk 0:00:12]}
50. Kxg3 {[%clk 0:00:17.6]} 50... Kg7 {[%clk 0:00:09.5]} 51. Qb7 {[%clk
0:00:17.7]} 51... Bf7 {[%clk 0:00:09.2]} 52. Qa7 {[%clk 0:00:17.4]} 52... Qd6
{[%clk 0:00:06.7]} 53. Qxa5 {[%clk 0:00:17.7]} 53... Qd2 {[%clk 0:00:06.6]} 54.
Qxe5+ {[%clk 0:00:18.7]} 54... Kg8 {[%clk 0:00:05]} 55. Qf4 {[%clk 0:00:10]}
55... Qxc2 {[%clk 0:00:05]} 56. Nh6+ {[%clk 0:00:10.9]} 56... Kg7 {[%clk
0:00:06.2]} 57. Nxf7 {[%clk 0:00:11.1]} 57... Ne6 {[%clk 0:00:07.3]} 58. Qd6
{[%clk 0:00:08.3]} 58... Kxf7 {[%clk 0:00:08.7]} 59. Qd7+ {[%clk 0:00:08.8]}
59... Kf6 {[%clk 0:00:10.2]} 60. Qe8 {[%clk 0:00:06.5]} 60... Qc1 {[%clk
0:00:06.4]} 61. Qh8+ {[%clk 0:00:07.2]} 61... Ke7 {[%clk 0:00:08.1]} 62. Qh7+
{[%clk 0:00:08]} 62... Kd6 {[%clk 0:00:09.7]} 63. Qh2 {[%clk 0:00:08.3]} 63...
Qf4+ {[%clk 0:00:10.3]} 64. Kh3 {[%clk 0:00:09.7]} 64... Qxh2+ {[%clk
0:00:11.3]} 65. Kxh2 {[%clk 0:00:11.6]} 65... Ke5 {[%clk 0:00:13.1]} 66. Kg3
{[%clk 0:00:13]} 66... g5 {[%clk 0:00:14.1]} 67. Kg4 {[%clk 0:00:14.3]} 67...
Kf6 {[%clk 0:00:15.4]} 68. Kg3 {[%clk 0:00:13.7]} 68... Nf4 {[%clk 0:00:16.7]}
69. Kg4 {[%clk 0:00:14.8]} 69... Nd3 {[%clk 0:00:17.4]} 70. Kg3 {[%clk
0:00:14.5]} 70... Nxb2 {[%clk 0:00:18.7]} 71. f4 {[%clk 0:00:14.3]} 71... gxf4+
{[%clk 0:00:19.6]} 72. Kxf4 {[%clk 0:00:16.2]} 72... Nd3+ {[%clk 0:00:21.5]} 73.
Ke3 {[%clk 0:00:17.4]} 73... Ke5 {[%clk 0:00:23.4]} 0-1

[Event "*** MasterClass Titled Tuesday Blitz"]
[Site "Chess.com"]
[Date "2017.12.05"]
[Round "7"]
[White "Vamostodorecto"]
[Black "likantrophuss"]
[Result "1/2-1/2"]
[WhiteElo "2331"]
[BlackElo "2448"]
[TimeControl "180+2"]
[EndTime "15:47:16 PST"]
[Termination "Game drawn by agreement"]

1. c4 {[%clk 0:02:49.4]} 1... Nf6 {[%clk 0:02:59.6]} 2. d4 {[%clk 0:02:42.5]}
2... g6 {[%clk 0:02:51.3]} 3. Nc3 {[%clk 0:02:42.2]} 3... Bg7 {[%clk 0:02:52.2]}
4. e4 {[%clk 0:02:42.4]} 4... d6 {[%clk 0:02:53.3]} 5. Be2 {[%clk 0:02:43.9]}
5... O-O {[%clk 0:02:54.4]} 6. Nf3 {[%clk 0:02:45.5]} 6... c5 {[%clk 0:02:55.6]}
7. d5 {[%clk 0:02:45.7]} 7... e6 {[%clk 0:02:55.6]} 8. O-O {[%clk 0:02:47.1]}
8... exd5 {[%clk 0:02:56.7]} 9. cxd5 {[%clk 0:02:48.5]} 9... Bg4 {[%clk
0:02:57.6]} 10. h3 {[%clk 0:02:48.2]} 10... Bxf3 {[%clk 0:02:56.9]} 11. Bxf3
{[%clk 0:02:50.1]} 11... Re8 {[%clk 0:02:58.1]} 12. Bg5 {[%clk 0:02:48.5]} 12...
Nbd7 {[%clk 0:02:58.6]} 13. Qd2 {[%clk 0:02:47.6]} 13... a6 {[%clk 0:02:59.2]}
14. g3 {[%clk 0:02:44.8]} 14... Qe7 {[%clk 0:02:59.7]} 15. Bg2 {[%clk
0:02:44.2]} 15... Qf8 {[%clk 0:03:00.1]} 16. a4 {[%clk 0:02:40.1]} 16... h6
{[%clk 0:02:56]} 17. Bf4 {[%clk 0:02:38.3]} 17... Nh5 {[%clk 0:02:55.9]} 18. Be3
{[%clk 0:02:34.8]} 18... f5 {[%clk 0:02:56.2]} 19. exf5 {[%clk 0:02:34]} 19...
gxf5 {[%clk 0:02:56.4]} 20. Ne2 {[%clk 0:02:29.1]} 20... Ne5 {[%clk 0:02:55.6]}
21. Rac1 {[%clk 0:02:19.5]} 21... b5 {[%clk 0:02:54.7]} 22. axb5 {[%clk
0:02:16.1]} 22... axb5 {[%clk 0:02:56.6]} 23. b3 {[%clk 0:02:07.5]} 23... Ra3
{[%clk 0:02:55.8]} 24. Qc2 {[%clk 0:01:59.7]} 24... Rea8 {[%clk 0:02:26.2]} 25.
Nf4 {[%clk 0:01:58.5]} 25... Ra2 {[%clk 0:02:26.1]} 26. Qd1 {[%clk 0:01:51.5]}
26... Nxf4 {[%clk 0:02:26.1]} 27. Bxf4 {[%clk 0:01:53.4]} 27... Ng6 {[%clk
0:02:22.2]} 28. Be3 {[%clk 0:01:50.9]} 28... f4 {[%clk 0:02:20.8]} 29. Bd2
{[%clk 0:01:36.8]} 29... f3 {[%clk 0:02:16.8]} 30. Bxf3 {[%clk 0:01:26]} 30...
Rxd2 {[%clk 0:02:15.1]} 31. Qxd2 {[%clk 0:01:27.9]} 31... Qxf3 {[%clk
0:02:15.7]} 32. Qd1 {[%clk 0:01:24.6]} 32... Qf5 {[%clk 0:02:08.6]} 33. Kg2
{[%clk 0:01:19.8]} 33... Bd4 {[%clk 0:02:05.3]} 34. Qf3 {[%clk 0:01:17.6]} 34...
Qg5 {[%clk 0:02:03.8]} 35. Kh2 {[%clk 0:01:10.3]} 35... Rf8 {[%clk 0:02:01.5]}
36. Qg2 {[%clk 0:01:10.1]} 36... Be5 {[%clk 0:01:28.6]} 37. Kh1 {[%clk 0:00:45]}
37... Qd2 {[%clk 0:01:03]} 38. f4 {[%clk 0:00:43.4]} 38... Qxg2+ {[%clk
0:01:03.1]} 39. Kxg2 {[%clk 0:00:45.3]} 39... Bd4 {[%clk 0:01:04.3]} 40. Rfe1
{[%clk 0:00:40.1]} 40... h5 {[%clk 0:01:01.3]} 41. Re6 {[%clk 0:00:40.1]} 41...
Kh7 {[%clk 0:01:02.2]} 42. Rxd6 {[%clk 0:00:40.1]} 42... h4 {[%clk 0:01:02.1]}
43. Re1 {[%clk 0:00:34.6]} 43... hxg3 {[%clk 0:01:01.7]} 44. Kxg3 {[%clk
0:00:31.1]} 44... Nxf4 {[%clk 0:00:57.3]} 45. Re7+ {[%clk 0:00:29.5]} 45... Kg8
{[%clk 0:00:53.4]} 46. Rdd7 {[%clk 0:00:22.5]} 46... c4 {[%clk 0:00:45.6]} 47.
bxc4 {[%clk 0:00:22]} 47... bxc4 {[%clk 0:00:47.2]} 48. Re4 {[%clk 0:00:22.6]}
48... c3 {[%clk 0:00:45.7]} 49. Kg4 {[%clk 0:00:15.9]} 49... c2 {[%clk
0:00:36.5]} 50. Rc7 {[%clk 0:00:16.7]} 50... Nxd5 {[%clk 0:00:37]} 51. Rxc2
{[%clk 0:00:14.8]} 51... Nf6+ {[%clk 0:00:37.2]} 52. Kf5 {[%clk 0:00:14.8]}
52... Nxe4+ {[%clk 0:00:38.6]} 53. Kxe4 {[%clk 0:00:16.7]} 53... Bg7 {[%clk
0:00:38.9]} 54. Rg2 {[%clk 0:00:16.5]} 54... Kh7 {[%clk 0:00:39.6]} 55. Kd5
{[%clk 0:00:15.5]} 55... Rf3 {[%clk 0:00:37.5]} 56. h4 {[%clk 0:00:15.2]} 56...
Bf6 {[%clk 0:00:37.3]} 57. Rg4 {[%clk 0:00:15.2]} 57... Kh6 {[%clk 0:00:35.1]}
58. Ke6 {[%clk 0:00:15.7]} 58... Kh5 {[%clk 0:00:30.6]} 59. Rg8 {[%clk
0:00:14.5]} 59... Bxh4 {[%clk 0:00:30.8]} 60. Rh8+ {[%clk 0:00:15.1]} 60... Kg4
{[%clk 0:00:31.4]} 61. Rg8+ {[%clk 0:00:16.7]} 61... Bg5 {[%clk 0:00:32]} 62.
Ke5 {[%clk 0:00:17.4]} 62... Re3+ {[%clk 0:00:32.7]} 63. Kd4 {[%clk 0:00:18.2]}
63... Re7 {[%clk 0:00:32.6]} 64. Kd5 {[%clk 0:00:19]} 64... Re1 {[%clk
0:00:31.1]} 65. Kd6 {[%clk 0:00:19.4]} 65... Kf5 {[%clk 0:00:32]} 66. Rf8+
{[%clk 0:00:19.8]} 66... Bf6 {[%clk 0:00:32.7]} 67. Kd5 {[%clk 0:00:21.4]} 67...
Rd1+ {[%clk 0:00:33.8]} 68. Kc4 {[%clk 0:00:21.9]} 68... Rd4+ {[%clk 0:00:30.9]}
69. Kc5 {[%clk 0:00:22.4]} 69... Rd7 {[%clk 0:00:30.1]} 70. Kc6 {[%clk
0:00:22.7]} 70... Rd1 {[%clk 0:00:29.8]} 71. Kc5 {[%clk 0:00:23.5]} 71... Ke6
{[%clk 0:00:29.4]} 72. Kc4 {[%clk 0:00:22.7]} 72... Rd4+ {[%clk 0:00:27.5]} 73.
Kc5 {[%clk 0:00:20.3]} 73... Rd3 {[%clk 0:00:27.8]} 74. Kc4 {[%clk 0:00:20.9]}
74... Rc3+ {[%clk 0:00:28.4]} 75. Kb4 {[%clk 0:00:22.1]} 75... Rc2 {[%clk
0:00:28.6]} 76. Kb3 {[%clk 0:00:22.8]} 76... Rc3+ {[%clk 0:00:27.8]} 77. Kb4
{[%clk 0:00:22.7]} 77... Rc1 {[%clk 0:00:29]} 78. Kb3 {[%clk 0:00:22.3]} 78...
Be7 {[%clk 0:00:29]} 79. Rf2 {[%clk 0:00:21.7]} 79... Kd5 {[%clk 0:00:29.1]} 80.
Rd2+ {[%clk 0:00:22]} 80... Ke4 {[%clk 0:00:27.7]} 81. Re2+ {[%clk 0:00:22.9]}
81... Kd3 {[%clk 0:00:27.1]} 82. Rxe7 {[%clk 0:00:24.8]} 82... Rb1+ {[%clk
0:00:27.8]} 83. Ka2 {[%clk 0:00:25.3]} 83... Rb8 {[%clk 0:00:27.1]} 84. Rd7+
{[%clk 0:00:26.2]} 1/2-1/2